bitfinex/quotes_BTCUSD_20250901
["timestamp","ask_amount","ask_price","bid_price","bid_amount"]
[1756690690327,1.80142508,108340.0,108330.0,1e-08]
[1756690691104,1.63458508,108340.0,108330.0,1e-08]
[1756690691309,1.80130508,108340.0,108330.0,1e-08]
[1756690692182,1.80114508,108340.0,108330.0,1e-08]
[1756690692727,1.80102508,108340.0,108330.0,1e-08]
[1756690692922,1.20258885,108340.0,108330.0,1e-08]
[1756690693134,1.36894885,108340.0,108330.0,1e-08]
[1756690693610,1.41894885,108340.0,108330.0,1e-08]
[1756690694242,1.41882885,108340.0,108330.0,1e-08]
[1756690694821,1.36882885,108340.0,108330.0,1e-08]
[1756690695091,1.41882885,108340.0,108330.0,1e-08]
[1756690695334,1.20258885,108340.0,108330.0,1e-08]
[1756690695586,1.41878885,108340.0,108330.0,1e-08]
[1756690696006,1.36878885,108340.0,108330.0,1e-08]
[1756690696223,1.25258885,108340.0,108330.0,1e-08]
[1756690696433,0.44891795,108340.0,108330.0,0.00197001]
[1756690696638,0.44047647,108340.0,108330.0,0.00197001]
[1756690696773,0.78047647,108340.0,108330.0,0.00197001]
[1756690696976,0.77647647,108340.0,108330.0,0.00197001]
[1756690697839,0.77147647,108340.0,108330.0,0.00197001]
[1756690698014,0.77347647,108340.0,108330.0,0.00197001]
[1756690698244,0.59591354,108340.0,108330.0,0.00197001]
[1756690698445,0.76183354,108340.0,108330.0,0.00197001]
[1756690698853,0.76386354,108340.0,108330.0,0.00197001]
[1756690699103,0.76583354,108340.0,108330.0,0.00197001]
[1756690699436,0.76183354,108340.0,108330.0,0.00197001]
[1756690699642,0.74252402,108340.0,108330.0,0.00197001]
[1756690699824,0.74452402,108340.0,108330.0,0.00197001]
[1756690700023,0.74452402,108340.0,108330.0,0.00521001]
[1756690700471,0.69452402,108340.0,108330.0,0.00521001]
[1756690700672,0.7553372,108340.0,108330.0,0.00197001]
[1756690700878,0.77678672,108340.0,108330.0,0.00197001]
[1756690701770,0.78002672,108340.0,108330.0,1e-08]
[1756690702327,0.78002672,108340.0,108330.0,0.00202001]
[1756690702945,1.11202295,108340.0,108330.0,1e-08]
[1756690703161,1.20500296,108340.0,108330.0,1e-08]
[1756690703512,0.54791354,108340.0,108330.0,0.00526001]
[1756690703727,0.37407354,108340.0,108330.0,0.00526001]
[1756690703939,0.42407354,108340.0,108330.0,0.00526001]
[1756690704337,0.42427354,108340.0,108330.0,0.00526001]
[1756690704747,0.18660402,108340.0,108330.0,0.00526001]
[1756690704959,0.25391354,108340.0,108330.0,0.00526001]
[1756690705195,0.25491354,108340.0,108330.0,0.00526001]
[1756690705403,0.25591354,108340.0,108330.0,0.00526001]
[1756690706240,0.25591354,108340.0,108330.0,0.6307235]
[1756690706241,0.23660402,108340.0,108330.0,0.6307235]
[1756690706448,0.052,108340.0,108330.0,0.62841574]
[1756690706665,0.23660402,108340.0,108330.0,0.62841574]
[1756690706879,0.052,108340.0,108330.0,0.79453574]
[1756690707098,0.25591354,108340.0,108330.0,0.79453574]
[1756690707299,0.07130952,108340.0,108330.0,0.79453574]
[1756690707509,0.25591354,108340.0,108330.0,0.28286108]
[1756690707732,0.25591354,108340.0,108330.0,0.09824002]
[1756690709064,0.25591354,108340.0,108330.0,0.26424002]
[1756690710058,0.25591354,108340.0,108330.0,0.44886108]
[1756690710607,0.25591354,108340.0,108330.0,0.09824002]
[1756690710917,0.07130952,108340.0,108330.0,0.45108884]
[1756690711124,0.25591354,108340.0,108330.0,0.79433574]
[1756690711351,0.07130952,108340.0,108330.0,0.79433574]
[1756690711748,0.07030952,108340.0,108330.0,0.79433574]
[1756690711922,0.25491354,108340.0,108330.0,0.79433574]
[1756690712125,0.25391354,108340.0,108330.0,0.60971468]
[1756690712609,0.25391354,108340.0,108330.0,0.26416002]
[1756690712859,0.25391354,108340.0,108330.0,0.26072002]
[1756690713489,0.25391354,108340.0,108330.0,0.26048002]
[1756690715617,0.25605354,108340.0,108330.0,0.09500002]
[1756690715821,0.25929354,108340.0,108330.0,1e-08]
[1756690717124,0.7700882,108340.0,108330.0,1e-08]
[1756690718344,0.7720882,108340.0,108330.0,1e-08]
[1756690719110,1.20038452,108340.0,108330.0,1e-08]
[1756690719329,1.1140882,108340.0,108330.0,1e-08]
[1756690719533,1.22800703,108340.0,108330.0,1e-08]
[1756690719736,1.25575603,108340.0,108330.0,1e-08]
[1756690721817,1.25535603,108340.0,108330.0,1e-08]
[1756690722266,1.09051603,108340.0,108330.0,1e-08]
[1756690722510,1.34165235,108340.0,108330.0,1e-08]
[1756690722717,1.33965235,108340.0,108330.0,1e-08]
[1756690722925,1.34665235,108340.0,108330.0,1e-08]
[1756690723882,1.34965235,108340.0,108330.0,1e-08]
[1756690724304,1.34665235,108340.0,108330.0,1e-08]
[1756690724763,1.35065235,108340.0,108330.0,1e-08]
[1756690726577,1.40065235,108340.0,108330.0,1e-08]
[1756690726773,0.89025769,108340.0,108330.0,1e-08]
[1756690727002,1.40021235,108340.0,108330.0,1e-08]
[1756690727356,1.40017235,108340.0,108330.0,1e-08]
[1756690727985,1.71855017,108340.0,108330.0,1e-08]
[1756690729255,1.71835017,108340.0,108330.0,1e-08]
[1756690732139,2.21195017,108340.0,108330.0,1e-08]
[1756690732344,6.79412253,108340.0,108330.0,1e-08]
[1756690736362,6.8112849,108340.0,108330.0,1e-08]
[1756690736576,6.8109249,108340.0,108330.0,1e-08]
[1756690736797,6.79376253,108340.0,108330.0,1e-08]
[1756690737167,6.62996253,108340.0,108330.0,1e-08]
[1756690737379,6.79372253,108340.0,108330.0,1e-08]
[1756690737601,6.79855099,108340.0,108330.0,1e-08]
[1756690739256,6.81571478,108340.0,108330.0,1e-08]
[1756690739480,6.79855099,108340.0,108330.0,1e-08]
[1756690739702,6.77277863,108340.0,108330.0,1e-08]
[1756690740376,6.78994474,108340.0,108330.0,1e-08]
[1756690740610,6.78974475,108340.0,108330.0,1e-08]
[1756690740825,6.77257863,108340.0,108330.0,1e-08]
[1756690741365,6.78974886,108340.0,108330.0,1e-08]
[1756690741703,6.78998886,108340.0,108330.0,1e-08]
[1756690742229,6.78998846,108340.0,108330.0,1e-08]
[1756690743000,5.96225598,108340.0,108330.0,1e-08]
[1756690743207,1.77273863,108340.0,108330.0,1e-08]
[1756690743895,1.50901863,108340.0,108330.0,1e-08]
[1756690744129,1.63253029,108340.0,108330.0,0.00197001]
[1756690744382,1.79855099,108340.0,108330.0,1e-08]
[1756690744625,1.81573955,108340.0,108330.0,1e-08]
[1756690748633,1.65197955,108340.0,108330.0,1e-08]
[1756690748846,1.81565955,108340.0,108330.0,1e-08]
[1756690749050,0.53591386,108320.0,108310.0,0.00295]
[1756690749275,0.79249387,108320.0,108310.0,0.00295]
[1756690749486,0.79249387,108320.0,108310.0,0.00492]
[1756690749704,0.68733735,108320.0,108310.0,0.00492]
[1756690749908,0.87020687,108320.0,108310.0,0.00492]
[1756690750625,0.32768063,108320.0,108310.0,0.00492]
[1756690750842,1.04964687,108320.0,108310.0,0.00492]
[1756690751121,1.12014686,108320.0,108310.0,0.00492]
[1756690751879,0.42242762,108320.0,108310.0,0.00492]
[1756690752093,0.76242762,108320.0,108310.0,0.00492]
[1756690752311,0.59894762,108320.0,108310.0,0.00492]
[1756690752526,0.76238762,108320.0,108310.0,0.00492]
[1756690753189,0.76038762,108320.0,108310.0,0.00492]
[1756690753613,0.76138762,108320.0,108310.0,0.00492]
[1756690753831,0.5756381,108320.0,108310.0,0.00492]
[1756690754046,0.75846762,108320.0,108310.0,0.00492]
[1756690754748,1.09043386,108320.0,108310.0,0.00492]
[1756690755407,0.75946762,108320.0,108310.0,0.00492]
[1756690757511,0.25594762,108320.0,108310.0,0.00492]
[1756690758169,0.25594762,108320.0,108310.0,0.00722818]
[1756690759889,0.25594762,108320.0,108310.0,0.52384957]
[1756690759890,0.1866381,108320.0,108310.0,0.52384957]
[1756690760099,0.25594762,108320.0,108310.0,0.6145214]
[1756690760514,0.25594762,108320.0,108310.0,0.28255516]
[1756690760724,0.25594762,108320.0,108310.0,0.7775614]
[1756690760929,0.07130952,108320.0,108310.0,0.7775614]
[1756690761134,0.25494762,108320.0,108310.0,0.7774814]
[1756690761307,0.25494762,108320.0,108310.0,0.7784814]
[1756690761542,0.25394762,108320.0,108310.0,0.7784814]
[1756690761758,0.25394762,108320.0,108310.0,0.6155214]
[1756690761966,0.25394762,108320.0,108310.0,0.7794814]
[1756690762588,0.25394762,108320.0,108310.0,0.7794414]
[1756690762795,0.25394762,108320.0,108310.0,0.44747516]
[1756690763000,0.25394762,108320.0,108310.0,0.26274001]
[1756690763209,0.25394762,108320.0,108310.0,0.59470625]
[1756690763417,0.25394762,108320.0,108310.0,0.7793214]
[1756690764876,0.05,108320.0,108310.0,0.7793214]
[1756690765090,0.06930952,108320.0,108310.0,0.7793214]
[1756690766324,0.05,108330.0,108320.0,0.1846381]
[1756690766529,0.06945182,108340.0,108330.0,0.18462106]
[1756690766736,0.01945182,108340.0,108330.0,1.10872355]
[1756690766935,0.01945182,108340.0,108330.0,1.12002946]
[1756690767142,0.0001423,108340.0,108330.0,1.12368946]
[1756690767352,0.01945182,108340.0,108330.0,1.12368946]
[1756690767637,0.0001423,108340.0,108330.0,1.12368946]
[1756690768157,0.0001423,108340.0,108330.0,1.48458828]
[1756690768360,0.0001423,108340.0,108330.0,1.48658828]
[1756690768790,0.0001423,108340.0,108330.0,1.32298828]
[1756690768990,0.0001423,108340.0,108330.0,1.49054828]
[1756690770594,0.0001423,108340.0,108330.0,1.55916498]
[1756690771471,0.0001423,108340.0,108330.0,0.7316725]
[1756690771686,0.0001423,108340.0,108330.0,1.55888498]
[1756690773197,0.0001423,108340.0,108330.0,0.7316725]
[1756690773459,0.0001423,108340.0,108330.0,1.20597992]
[1756690773662,0.0001423,108340.0,108330.0,1.20589992]
[1756690773867,0.0001423,108340.0,108330.0,0.87193368]
[1756690774010,0.0001423,108340.0,108330.0,1.20589992]
[1756690774854,0.0001423,108340.0,108330.0,1.20389992]
[1756690775437,0.0001423,108340.0,108330.0,1.20589992]
[1756690777008,0.0001423,108340.0,108330.0,1.20389992]
[1756690778542,0.0001423,108340.0,108330.0,1.53786616]
[1756690780403,0.0001423,108340.0,108330.0,1.75962616]
[1756690780609,0.0001423,108340.0,108330.0,1.78056498]
[1756690781686,0.0001423,108340.0,108330.0,1.1166325]
[1756690781903,0.0001423,108340.0,108330.0,1.78056498]
[1756690782974,0.0001423,108340.0,108330.0,1.73968228]
[1756690783385,0.0001423,108340.0,108330.0,1.57648228]
[1756690783612,0.0001423,108340.0,108330.0,1.0752698]
[1756690783827,0.0001423,108340.0,108330.0,1.73920228]
[1756690786351,0.0001423,108340.0,108330.0,1.73704228]
[1756690787558,0.0001423,108340.0,108330.0,1.57448228]
[1756690787913,0.0001423,108340.0,108330.0,1.73704228]
[1756690792674,0.0052723,108340.0,108330.0,0.88754098]
[1756690792879,0.18987632,108340.0,108330.0,1.41950722]
[1756690793083,0.02458182,108340.0,108330.0,1.21417322]
[1756690793521,0.02458182,108340.0,108330.0,0.88220698]
[1756690793760,0.02458182,108340.0,108330.0,1.21417322]
[1756690796216,0.02458182,108340.0,108330.0,1.01417322]
[1756690796786,0.20918584,108340.0,108330.0,1.01417322]
[1756690796986,0.20918584,108340.0,108330.0,1.21417322]
[1756690798725,0.20918584,108340.0,108330.0,1.01417322]
[1756690798942,0.02458182,108340.0,108330.0,1.01417322]
[1756690800300,0.20918584,108340.0,108330.0,1.21417322]
[1756690800514,0.20918584,108340.0,108330.0,1.01417322]
[1756690800755,0.02458182,108340.0,108330.0,1.01417322]
[1756690801115,0.20918584,108340.0,108330.0,1.01417322]
[1756690802369,0.02458182,108340.0,108330.0,1.21417322]
[1756690803194,0.20918584,108340.0,108330.0,1.21417322]
[1756690803627,0.20918584,108340.0,108330.0,0.33518592]
[1756690803628,0.25918584,108340.0,108330.0,0.33518592]
[1756690803896,0.25918584,108340.0,108330.0,0.26500001]
[1756690804104,0.25918584,108340.0,108330.0,0.46030901]
[1756690804513,0.25918584,108340.0,108330.0,0.79227525]
[1756690805157,0.25918584,108340.0,108330.0,0.46030901]
[1756690805333,0.25918584,108340.0,108330.0,0.60765419]
[1756690805539,0.25918584,108340.0,108330.0,0.26500001]
[1756690805744,0.25918584,108340.0,108330.0,0.59696625]
[1756690806576,0.25918584,108340.0,108330.0,0.26500001]
[1756690806776,0.25918584,108340.0,108330.0,0.10264001]
[1756690807010,0.25918584,108340.0,108330.0,0.26500001]
[1756690810326,0.25918584,108340.0,108330.0,0.00966]
[1756690810537,0.25918584,108340.0,108330.0,0.17202]
[1756690811180,0.20918584,108340.0,108330.0,0.69298506]
[1756690811427,0.20918584,108340.0,108330.0,0.78365731]
[1756690811428,0.25405584,108340.0,108330.0,0.78365731]
[1756690812234,0.25918584,108340.0,108330.0,0.59903625]
[1756690812641,0.25918584,108340.0,108330.0,0.26707001]
[1756690813070,0.25918584,108340.0,108330.0,0.45169107]
[1756690813273,0.20703584,108340.0,108330.0,0.78365731]
[1756690813454,0.25703584,108340.0,108330.0,0.78365731]
[1756690813653,0.25703584,108340.0,108330.0,0.59903625]
[1756690813873,0.25918584,108340.0,108330.0,0.59903625]
[1756690815407,0.25405584,108340.0,108330.0,0.78365731]
[1756690815635,0.25405584,108340.0,108330.0,0.59903625]
[1756690815867,0.25405584,108340.0,108330.0,0.78365731]
[1756690816054,0.25918584,108340.0,108330.0,0.78365731]
[1756690816668,0.25405584,108340.0,108330.0,0.78365731]
[1756690816870,0.23474632,108340.0,108330.0,0.78365731]
[1756690817097,0.25405584,108340.0,108330.0,0.78365731]
[1756690817284,0.23474632,108340.0,108330.0,0.78365731]
[1756690817424,0.25405584,108340.0,108330.0,0.78365731]
[1756690817876,0.0501423,108340.0,108330.0,0.78365731]
[1756690818105,0.06945182,108340.0,108330.0,0.78565731]
[1756690818527,0.25405584,108340.0,108330.0,0.28933107]
[1756690818651,0.25918584,108340.0,108330.0,0.78365731]
[1756690821135,0.06945182,108340.0,108330.0,0.78365731]
[1756690821374,0.06945182,108340.0,108330.0,0.78565731]
[1756690821375,0.0501423,108340.0,108330.0,0.78565731]
[1756690821597,0.06945182,108340.0,108330.0,0.78565731]
[1756690821774,0.06945182,108340.0,108330.0,0.80415731]
[1756690821981,0.0001423,108340.0,108330.0,1.11762355]
[1756690822387,0.0001423,108340.0,108330.0,1.45762355]
[1756690822601,0.0001423,108340.0,108330.0,1.47856237]
[1756690823957,0.0001423,108340.0,108330.0,1.31620237]
[1756690824169,0.0001423,108340.0,108330.0,1.47852237]
[1756690828016,0.0001423,108340.0,108330.0,1.31620237]
[1756690828219,0.0001423,108340.0,108330.0,1.47848237]
[1756690828427,0.0001423,108340.0,108330.0,1.50621637]
[1756690830539,4.362e-05,108340.0,108330.0,1.50621637]
[1756690831064,4.362e-05,108340.0,108330.0,1.90621637]
[1756690831263,4.362e-05,108340.0,108330.0,1.08000389]
[1756690831627,4.362e-05,108340.0,108330.0,1.90617637]
[1756690831828,4.362e-05,108340.0,108330.0,1.50944389]
[1756690831950,4.362e-05,108340.0,108330.0,2.17337637]
[1756690834356,4.362e-05,108340.0,108330.0,2.01113637]
[1756690834508,4.362e-05,108340.0,108330.0,2.17337637]
[1756690835735,4.362e-05,108340.0,108330.0,2.01113637]
[1756690835939,4.362e-05,108340.0,108330.0,2.17333637]
[1756690840550,4.362e-05,108340.0,108330.0,2.53599309]
[1756690840756,3.62e-06,108340.0,108330.0,2.53599309]
[1756690841349,3.62e-06,108340.0,108330.0,2.20202685]
[1756690841673,3.62e-06,108340.0,108330.0,2.20502685]
[1756690841878,3.62e-06,108340.0,108330.0,2.20102685]
[1756690842158,3.62e-06,108340.0,108330.0,2.20402685]
[1756690842961,3.62e-06,108340.0,108330.0,2.19802685]
[1756690843259,3.62e-06,108340.0,108330.0,2.20602685]
[1756690844063,3.62e-06,108340.0,108330.0,2.42774685]
[1756690846747,3.62e-06,108340.0,108330.0,2.42766685]
[1756690847558,3.62e-06,108340.0,108330.0,2.59351025]
[1756690848077,3.62e-06,108340.0,108330.0,2.42766685]
[1756690848716,0.003,108360.0,108350.0,1.0955258]
[1756690848916,0.01970952,108370.0,108360.0,0.18456995]
[1756690849172,0.01975697,108370.0,108360.0,0.7715962]
[1756690849350,0.02183697,108370.0,108360.0,0.7715962]
[1756690849512,0.02483697,108370.0,108360.0,0.7715962]
[1756690850366,0.02483697,108370.0,108360.0,0.43962996]
[1756690850752,0.02483697,108370.0,108360.0,0.7725962]
[1756690851740,0.02483697,108370.0,108360.0,0.6105162]
[1756690851947,0.02483697,108370.0,108360.0,0.7725562]
[1756690853020,0.25938989,108370.0,108360.0,0.6105162]
[1756690853227,0.25938989,108370.0,108360.0,0.09398001]
[1756690853436,0.59135613,108370.0,108360.0,0.16304]
[1756690853604,0.25938989,108370.0,108360.0,0.001]
[1756690853810,0.59135613,108370.0,108360.0,0.16304]
[1756690854242,0.59135613,108370.0,108360.0,0.001]
[1756690854463,0.59135613,108370.0,108360.0,0.16304]
[1756690854902,0.59135613,108370.0,108360.0,0.16204]
[1756690855323,0.59335613,108370.0,108360.0,0.16204]
[1756690855678,0.59735613,108370.0,108360.0,0.16204]
[1756690856430,0.59535613,108370.0,108360.0,0.16204]
[1756690856640,0.59735613,108370.0,108360.0,0.16204]
[1756690858753,0.25387947,108360.0,108350.0,0.07092]
[1756690858967,0.18458698,108350.0,108340.0,0.2]
[1756690859187,0.18981698,108350.0,108340.0,0.45498001]
[1756690859421,0.23981698,108350.0,108340.0,0.45498001]
[1756690859626,0.2591265,108350.0,108340.0,0.45498001]
[1756690860237,0.2591265,108350.0,108340.0,0.09298001]
[1756690860443,0.25391354,108340.0,108330.0,0.1430343]
[1756690860646,0.25914354,108340.0,108330.0,0.39797431]
[1756690861707,0.25914354,108340.0,108330.0,0.16390001]
[1756690861911,0.25914354,108340.0,108330.0,0.32586001]
[1756690862328,0.25914354,108340.0,108330.0,0.16490001]
[1756690862532,0.25914354,108340.0,108330.0,0.32686001]
[1756690862744,0.59110978,108340.0,108330.0,0.16296]
[1756690862947,0.59110978,108340.0,108330.0,0.001]
[1756690863152,0.59110978,108340.0,108330.0,0.16296]
[1756690863356,0.59110978,108340.0,108330.0,0.001]
[1756690864932,0.93110978,108340.0,108330.0,0.001]
[1756690865292,1.09306978,108340.0,108330.0,0.001]
[1756690865665,1.10367337,108340.0,108330.0,0.001]
[1756690866518,1.10363337,108340.0,108330.0,0.001]
[1756690867623,1.43559961,108340.0,108330.0,0.001]
[1756690868005,1.27367961,108340.0,108330.0,0.001]
[1756690868200,1.43559961,108340.0,108330.0,0.001]
[1756690868881,1.61687594,108340.0,108330.0,0.001]
[1756690869073,1.63781476,108340.0,108330.0,1e-08]
[1756690870318,0.20394762,108320.0,108310.0,0.0721143]
[1756690870524,0.70000386,108320.0,108310.0,0.0721143]
[1756690870729,0.70306386,108320.0,108310.0,0.0721143]
[1756690870957,0.54114386,108320.0,108310.0,0.0721143]
[1756690871167,0.20396467,108310.0,108300.0,0.04176747]
[1756690871371,0.53593091,108310.0,108300.0,0.04176747]
[1756690871575,0.59120832,108310.0,108300.0,0.04176747]
[1756690872396,0.25398172,108300.0,108290.0,0.0721143]
[1756690872602,0.58900796,108300.0,108290.0,0.0721143]
[1756690872786,0.59117796,108300.0,108290.0,0.0721143]
[1756690873741,0.59117796,108300.0,108290.0,0.11284156]
[1756690873963,0.59117796,108300.0,108290.0,0.04072726]
[1756690874137,0.59117796,108300.0,108280.0,0.1718652]
[1756690874138,0.18468926,108290.0,108280.0,0.1718652]
[1756690874519,0.06930952,108290.0,108280.0,0.45704034]
[1756690874705,0.25399878,108290.0,108280.0,0.4992224]
[1756690875125,0.25399878,108290.0,108280.0,0.4972224]
[1756690875448,0.25399878,108290.0,108280.0,0.4992224]
[1756690875996,0.06930952,108290.0,108280.0,0.4992224]
[1756690876229,0.25399878,108290.0,108280.0,0.4992224]
[1756690876941,0.25399878,108290.0,108280.0,0.83318864]
[1756690877088,0.25399878,108290.0,108280.0,0.83518864]
[1756690877708,0.01930952,108290.0,108280.0,0.83518864]
[1756690878002,0.19393531,108310.0,108290.0,0.18468926]
[1756690878225,0.25398172,108300.0,108290.0,0.61163551]
[1756690878405,0.25398172,108300.0,108290.0,0.84457551]
[1756690878810,0.05,108300.0,108290.0,0.84657551]
[1756690879064,0.06930952,108300.0,108290.0,0.84657551]
[1756690879633,0.23470256,108310.0,108300.0,0.1846722]
[1756690879832,0.25501208,108310.0,108300.0,0.09508001]
[1756690880032,0.25601208,108310.0,108300.0,0.25922841]
[1756690880332,0.25401208,108310.0,108300.0,0.25692001]
[1756690880537,0.20401208,108310.0,108300.0,0.44159221]
[1756690880759,0.25401208,108310.0,108300.0,0.44159221]
[1756690880970,0.25401208,108310.0,108300.0,0.25692001]
[1756690881211,0.25501208,108310.0,108300.0,0.25692001]
[1756690881538,0.20819208,108310.0,108300.0,0.25692001]
[1756690881913,0.25501208,108310.0,108300.0,0.44159221]
[1756690882053,0.20501208,108310.0,108300.0,0.44159221]
[1756690882254,0.25501208,108310.0,108300.0,0.44159221]
[1756690882507,0.25501208,108310.0,108300.0,0.77355845]
[1756690882712,0.23570256,108310.0,108300.0,0.77555845]
[1756690882926,0.07035693,108310.0,108300.0,0.77555845]
[1756690883500,0.02035693,108310.0,108300.0,0.97555845]
[1756690883701,0.02035693,108310.0,108300.0,1.17555845]
[1756690884093,0.00104741,108310.0,108300.0,1.17555845]
[1756690884289,0.02035693,108310.0,108300.0,1.17555845]
[1756690884490,0.02035693,108310.0,108300.0,1.17655845]
[1756690885095,0.00104741,108310.0,108300.0,1.17655845]
[1756690885562,0.00104741,108310.0,108300.0,1.01471845]
[1756690885734,0.02035693,108310.0,108300.0,1.17651845]
[1756690885937,0.01935693,108310.0,108300.0,1.17651845]
[1756690886148,0.01935693,108310.0,108300.0,1.01471845]
[1756690886295,0.01935693,108310.0,108300.0,1.17651845]
[1756690888022,0.01935693,108310.0,108300.0,1.50848469]
[1756690888223,0.01935693,108310.0,108300.0,1.17647845]
[1756690889667,4.741e-05,108310.0,108300.0,1.17647845]
[1756690889850,0.01935693,108310.0,108300.0,1.17647845]
[1756690890267,4.741e-05,108310.0,108300.0,1.34668469]
[1756690890477,4.741e-05,108310.0,108300.0,1.86938351]
[1756690890671,4.741e-05,108310.0,108300.0,1.86934351]
[1756690890939,4.741e-05,108310.0,108300.0,1.89708551]
[1756690892667,4.741e-05,108310.0,108300.0,1.07143303]
[1756690892995,4.741e-05,108310.0,108300.0,1.89708551]
[1756690895486,4.741e-05,108310.0,108300.0,1.04849421]
[1756690895690,0.18988256,108310.0,108300.0,0.84639421]
[1756690895905,0.18988256,108310.0,108300.0,1.31229845]
[1756690896523,0.18988256,108310.0,108300.0,0.76594625]
[1756690896732,0.18988256,108310.0,108300.0,1.12762625]
[1756690896950,0.18988256,108310.0,108300.0,1.31229845]
[1756690897313,0.18988256,108310.0,108300.0,1.11229845]
[1756690897572,0.18988256,108310.0,108300.0,1.31229845]
[1756690897763,0.18988256,108310.0,108300.0,1.11229845]
[1756690897981,0.18988256,108310.0,108300.0,1.12762625]
[1756690898181,0.18988256,108310.0,108300.0,1.11426845]
[1756690898424,0.18988256,108310.0,108300.0,1.11229845]
[1756690898995,0.18988256,108310.0,108300.0,0.78033221]
[1756690899202,0.18988256,108310.0,108300.0,1.11229845]
[1756690899768,0.18988256,108310.0,108300.0,0.78033221]
[1756690900014,0.18988256,108310.0,108300.0,1.11229845]
[1756690900245,0.18988256,108310.0,108300.0,0.92758625]
[1756690900661,0.18988256,108310.0,108300.0,1.11225845]
[1756690901372,0.18988256,108310.0,108300.0,0.92758625]
[1756690901575,0.18988256,108310.0,108300.0,0.58758625]
[1756690901819,0.20919208,108310.0,108300.0,0.58758625]
[1756690902140,0.20919208,108310.0,108300.0,0.77225845]
[1756690906156,0.20919208,108310.0,108300.0,0.42594625]
[1756690906383,0.20919208,108310.0,108300.0,0.58750625]
[1756690906506,0.20919208,108310.0,108300.0,0.77217845]
[1756690907212,0.20919208,108310.0,108300.0,0.77414845]
[1756690907843,0.01935693,108310.0,108300.0,0.77414845]
[1756690908046,0.01935693,108310.0,108300.0,1.10811469]
[1756690909220,4.741e-05,108310.0,108300.0,1.10811469]
[1756690909427,4.741e-05,108310.0,108300.0,1.46905351]
[1756690911213,7.41e-06,108310.0,108300.0,1.46905351]
[1756690911615,7.41e-06,108310.0,108300.0,1.30749351]
[1756690911821,0.18992256,108310.0,108300.0,0.61865221]
[1756690911990,0.18992256,108310.0,108300.0,1.11213845]
[1756690912339,0.18992256,108310.0,108300.0,1.31213845]
[1756690912698,0.18992256,108310.0,108300.0,1.31410845]
[1756690912699,7.41e-06,108310.0,108300.0,1.31410845]
[1756690912901,7.41e-06,108310.0,108300.0,1.31610845]
[1756690913106,7.41e-06,108310.0,108300.0,1.64807469]
[1756690914371,7.41e-06,108310.0,108300.0,1.64603469]
[1756690914531,7.41e-06,108310.0,108300.0,1.31406845]
[1756690914720,7.41e-06,108310.0,108300.0,1.84603469]
[1756690915128,7.41e-06,108310.0,108300.0,1.51406845]
[1756690915528,0.00526741,108310.0,108300.0,1.51406845]
[1756690916073,7.41e-06,108310.0,108300.0,1.51406845]
[1756690916616,7.41e-06,108310.0,108300.0,1.84803469]
[1756690917174,7.41e-06,108310.0,108300.0,1.84603469]
[1756690917582,7.41e-06,108310.0,108300.0,1.68455469]
[1756690917798,0.00211741,108310.0,108300.0,1.51406845]
[1756690918002,0.00526741,108310.0,108300.0,1.51406845]
[1756690918979,0.00526741,108310.0,108300.0,1.51209845]
[1756690919186,0.18992256,108310.0,108300.0,0.59542001]
[1756690919389,0.18992256,108310.0,108300.0,1.31205845]
[1756690919801,0.25923208,108310.0,108300.0,0.09398001]
[1756690920006,0.25923208,108310.0,108300.0,0.25542001]
[1756690925033,0.25923208,108310.0,108300.0,0.44206221]
[1756690925221,0.25923208,108310.0,108300.0,0.77402845]
[1756690925603,0.25923208,108310.0,108300.0,0.77205845]
[1756690926616,0.25923208,108310.0,108300.0,0.44009221]
[1756690926829,0.25923208,108310.0,108300.0,0.58738625]
[1756690927585,0.25923208,108310.0,108300.0,0.25542001]
[1756690927916,0.25923208,108310.0,108300.0,0.44009221]
[1756690928886,0.25923208,108310.0,108300.0,0.77205845]
[1756690932081,0.25923208,108310.0,108300.0,0.77402845]
[1756690932280,0.06931693,108310.0,108300.0,0.77402845]
[1756690932514,0.01931693,108310.0,108300.0,0.77402845]
[1756690932921,7.41e-06,108310.0,108300.0,0.77402845]
[1756690933137,0.01931693,108310.0,108300.0,0.77402845]
[1756690934936,0.25608208,108310.0,108300.0,0.44206221]
[1756690935114,0.25923208,108310.0,108300.0,0.25526001]
[1756690935902,0.25923208,108310.0,108300.0,0.09398001]
[1756690936063,0.25923208,108310.0,108300.0,0.25526001]
[1756690936544,0.25923208,108310.0,108300.0,0.43993221]
[1756690937430,0.25923208,108310.0,108300.0,0.25526001]
[1756690938281,0.25923208,108310.0,108300.0,0.58722625]
[1756690939227,0.25923208,108310.0,108300.0,0.42594625]
[1756690939426,0.25923208,108310.0,108300.0,0.25522001]
[1756690940053,0.25923208,108310.0,108300.0,0.09398001]
[1756690940265,0.25923208,108310.0,108300.0,0.25522001]
[1756690940587,0.59119832,108310.0,108300.0,0.1622]
[1756690940911,0.42043208,108310.0,108300.0,0.1622]
[1756690941021,0.75239832,108310.0,108300.0,0.1622]
[1756690941231,0.42043208,108310.0,108300.0,0.1622]
[1756690942319,0.25923208,108310.0,108300.0,0.1622]
[1756690942522,0.25923208,108310.0,108300.0,0.49842464]
[1756690942776,0.25923208,108310.0,108300.0,0.49416624]
[1756690942950,0.25923208,108310.0,108300.0,0.1622]
[1756690943161,0.25923208,108310.0,108300.0,0.1645084]
[1756690946060,0.25923208,108310.0,108300.0,0.1622]
[1756690946450,0.25923208,108310.0,108300.0,0.1664584]
[1756690946696,0.25397208,108310.0,108300.0,0.1664584]
[1756690947046,0.25903208,108310.0,108300.0,0.1622]
[1756690947247,0.25903208,108310.0,108300.0,0.49416624]
[1756690947448,0.25903208,108310.0,108300.0,0.1622]
[1756690948096,0.25903208,108310.0,108300.0,0.16216]
[1756690948299,0.25903208,108310.0,108300.0,0.16212]
[1756690949137,0.25903208,108310.0,108300.0,0.001]
[1756690949348,0.59099832,108310.0,108300.0,0.16212]
[1756690950120,0.59099832,108310.0,108300.0,0.001]
[1756690950334,0.42015208,108310.0,108300.0,0.001]
[1756690951177,0.25903208,108310.0,108300.0,0.001]
[1756690951472,0.20903208,108310.0,108300.0,0.1876222]
[1756690951871,0.25903208,108310.0,108300.0,0.1876222]
[1756690952075,0.05000741,108310.0,108300.0,0.61256845]
[1756690953216,0.01931693,108310.0,108300.0,0.61456845]
[1756690954165,0.01931693,108310.0,108300.0,0.94653469]
[1756690954166,7.41e-06,108310.0,108300.0,0.94653469]
[1756690954395,0.01927693,108310.0,108300.0,0.61456845]
[1756690954992,0.01927693,108310.0,108300.0,0.28260221]
[1756690955271,0.05,108320.0,108310.0,0.18465515]
[1756690955465,0.00304,108330.0,108320.0,0.1846381]
[1756690955615,0.26538902,108340.0,108330.0,0.18462106]
[1756690955826,0.02433693,108340.0,108330.0,0.34566106]
[1756690956028,0.00304,108350.0,108340.0,0.18460402]
[1756690956188,0.2419544,108350.0,108340.0,0.18460402]
[1756690956399,0.00506,108350.0,108340.0,0.18460402]
[1756690956590,0.05207993,108350.0,108340.0,0.18460402]
[1756690957007,0.25892391,108350.0,108340.0,0.18460402]